[Event "January 2 Early 2024"]
[Site "https://www.chess.com"]
[Date "2024.01.02"]
[Round "11"]
[White "Rietze, Clemens, Dr."]
[Black "Buscar, Michael"]
[Result "0-1"]
[Board "88"]
[TimeControl "180+1"]
[WhiteFideId "24620351"]
[BlackFideId "2603616"]
[WhiteElo "2517"]
[BlackElo "2378"]
[WhiteTeam "GER"]
[BlackTeam "CAN"]
[WhiteClock "0:00:00"]
[BlackClock "0:00:05"]

1. d4 {[%clk 0:02:57]}  d5 {[%clk 0:02:59]} 2. c4 {[%clk 0:02:56]}  e6 {[%clk 0:02:59]} 3. Nf3 {[%clk 0:02:56]}  c5 {[%clk 0:02:59]} 4. cxd5 {[%clk 0:02:55]}  exd5 {[%clk 0:03:00]} 5. g3 {[%clk 0:02:54]}  Nc6 {[%clk 0:03:00]} 6. Bg2 {[%clk 0:02:54]}  Nf6 {[%clk 0:03:01]} 7. O-O {[%clk 0:02:54]}  Be7 {[%clk 0:03:02]} 8. dxc5 {[%clk 0:02:44]}  Bxc5 {[%clk 0:03:00]} 9. a3 {[%clk 0:02:44]}  O-O {[%clk 0:03:00]} 10. b4 {[%clk 0:02:40]}  Be7 {[%clk 0:02:59]} 11. Bb2 {[%clk 0:02:38]}  Ne4 {[%clk 0:02:59]} 12. Nfd2 {[%clk 0:02:31]}  Bf6 {[%clk 0:02:48]} 13. Qb3 {[%clk 0:02:19]}  Nd4 {[%clk 0:02:36]} 14. Bxd4 {[%clk 0:02:06]}  Bxd4 {[%clk 0:02:37]} 15. Ra2 {[%clk 0:02:07]}  Be6 {[%clk 0:02:36]} 16. Rc2 {[%clk 0:02:01]}  Qb6 {[%clk 0:02:29]} 17. e3 {[%clk 0:01:56]}  Bf6 {[%clk 0:02:17]} 18. Qd3 {[%clk 0:01:51]}  Nxd2 {[%clk 0:02:05]} 19. Nxd2 {[%clk 0:01:48]}  d4 {[%clk 0:01:40]} 20. e4 {[%clk 0:01:33]}  Rac8 {[%clk 0:01:33]} 21. Rfc1 {[%clk 0:01:30]}  Rc3 {[%clk 0:01:33]} 22. Rxc3 {[%clk 0:01:10]}  dxc3 {[%clk 0:01:33]} 23. Nc4 {[%clk 0:01:03]}  Qa6 {[%clk 0:01:15]} 24. Bf1 {[%clk 0:01:02]}  Rd8 {[%clk 0:01:06]} 25. Qe2 {[%clk 0:00:49]}  Bxc4 {[%clk 0:00:47]} 26. Qxc4 {[%clk 0:00:49]}  Qxa3 {[%clk 0:00:48]} 27. Re1 {[%clk 0:00:37]}  Bd4 {[%clk 0:00:31]} 28. e5 {[%clk 0:00:32]}  Qb2 {[%clk 0:00:18]} 29. Re2 {[%clk 0:00:30]}  Bxe5 {[%clk 0:00:13]} 30. Rxe5 {[%clk 0:00:12]}  c2 {[%clk 0:00:13]} 31. Rc5 {[%clk 0:00:12]}  h6 {[%clk 0:00:08]} 32. Qxc2 {[%clk 0:00:12]}  Qxb4 {[%clk 0:00:08]} 33. Rc7 {[%clk 0:00:11]}  a5 {[%clk 0:00:07]} 34. Bc4 {[%clk 0:00:08]}  b5 {[%clk 0:00:06]} 35. Bxf7+ {[%clk 0:00:07]}  Kh8 {[%clk 0:00:06]} 36. Qg6 {[%clk 0:00:06]}  Qe1+ {[%clk 0:00:04]} 37. Kg2 {[%clk 0:00:06]}  Qe5 {[%clk 0:00:05]} 38. Rc6 {[%clk 0:00:04]}  a4 {[%clk 0:00:04]} 39. h4 {[%clk 0:00:03]}  a3 {[%clk 0:00:04]} 40. Re6 {[%clk 0:00:03]}  Qd5+ {[%clk 0:00:04]} 41. Kh2 {[%clk 0:00:03]}  Qd4 {[%clk 0:00:04]} 42. Re4 {[%clk 0:00:02]}  Qxf2+ {[%clk 0:00:04]} 43. Kh3 {[%clk 0:00:03]}  Qf1+ {[%clk 0:00:05]} 44. Kg4 {[%clk 0:00:03]}  Qd1+ {[%clk 0:00:04]} 45. Kf5 {[%clk 0:00:02]}  Qd7+ {[%clk 0:00:03]} 46. Kf4 {[%clk 0:00:02]}  Qd6+ {[%clk 0:00:04]} 47. Re5 {[%clk 0:00:02]}  Qxg6 {[%clk 0:00:04]} 48. Bxg6 {[%clk 0:00:02]}  a2 {[%clk 0:00:04]} 49. Re1 {[%clk 0:00:02]}  Rf8+ {[%clk 0:00:04]} 50. Kg4 {[%clk 0:00:00]}  b4 {[%clk 0:00:05]} 0-1

[Event "January 2 Early 2024"]
[Site "https://www.chess.com"]
[Date "2024.01.02"]
[Round "11"]
[White "Weisz, Bryan"]
[Black "Lacasa Diaz, Josep Anton"]
[Result "0-1"]
[Board "89"]
[TimeControl "180+1"]
[WhiteFideId "30934133"]
[BlackFideId "2203375"]
[WhiteElo "2516"]
[BlackElo "2341"]
[WhiteTeam "USA"]
[BlackTeam "ESP"]
[WhiteClock "0:00:28"]
[BlackClock "0:00:35"]

1. f3 {[%clk 0:02:57]}  g6 {[%clk 0:03:00]} 2. Nh3 {[%clk 0:02:57]}  Bg7 {[%clk 0:03:01]} 3. Nf2 {[%clk 0:02:58]}  Nf6 {[%clk 0:02:54]} 4. e4 {[%clk 0:02:55]}  O-O {[%clk 0:02:53]} 5. d4 {[%clk 0:02:56]}  d6 {[%clk 0:02:51]} 6. Be3 {[%clk 0:02:52]}  a6 {[%clk 0:02:51]} 7. Qd2 {[%clk 0:02:52]}  b5 {[%clk 0:02:51]} 8. Bh6 {[%clk 0:02:50]}  c5 {[%clk 0:02:44]} 9. d5 {[%clk 0:02:43]}  Bxh6 {[%clk 0:02:40]} 10. Qxh6 {[%clk 0:02:43]}  e6 {[%clk 0:02:41]} 11. h4 {[%clk 0:02:24]}  exd5 {[%clk 0:02:38]} 12. h5 {[%clk 0:02:24]}  dxe4 {[%clk 0:02:36]} 13. hxg6 {[%clk 0:02:21]}  fxg6 {[%clk 0:02:34]} 14. Nxe4 {[%clk 0:02:21]}  Qe7 {[%clk 0:02:30]} 15. Kd1 {[%clk 0:02:03]}  Nxe4 {[%clk 0:02:27]} 16. fxe4 {[%clk 0:02:03]}  Bg4+ {[%clk 0:02:20]} 17. Kc1 {[%clk 0:02:03]}  Nc6 {[%clk 0:02:10]} 18. Nc3 {[%clk 0:02:03]}  Qg7 {[%clk 0:01:56]} 19. Qh4 {[%clk 0:01:55]}  Be6 {[%clk 0:01:56]} 20. Qg3 {[%clk 0:01:43]}  Ne5 {[%clk 0:01:49]} 21. Be2 {[%clk 0:01:39]}  b4 {[%clk 0:01:48]} 22. Na4 {[%clk 0:01:28]}  Rab8 {[%clk 0:01:40]} 23. Rd1 {[%clk 0:01:28]}  Bd7 {[%clk 0:01:38]} 24. b3 {[%clk 0:01:23]}  Bxa4 {[%clk 0:01:34]} 25. bxa4 {[%clk 0:01:23]}  Kh8 {[%clk 0:01:29]} 26. Rb1 {[%clk 0:01:14]}  Qf6 {[%clk 0:01:18]} 27. Bxa6 {[%clk 0:01:04]}  c4 {[%clk 0:01:11]} 28. Qe3 {[%clk 0:00:55]}  Nd3+ {[%clk 0:01:04]} 29. Kd2 {[%clk 0:00:44]}  Qc3+ {[%clk 0:01:01]} 30. Ke2 {[%clk 0:00:44]}  Rf2+ {[%clk 0:00:56]} 31. Qxf2 {[%clk 0:00:44]}  Nxf2 {[%clk 0:00:56]} 32. Kxf2 {[%clk 0:00:45]}  Rf8+ {[%clk 0:00:52]} 33. Kg1 {[%clk 0:00:46]}  Qe3+ {[%clk 0:00:48]} 34. Kh1 {[%clk 0:00:44]}  Qh6+ {[%clk 0:00:44]} 35. Kg1 {[%clk 0:00:45]}  Qe3+ {[%clk 0:00:44]} 36. Kh1 {[%clk 0:00:45]}  Qxe4 {[%clk 0:00:42]} 37. Rxb4 {[%clk 0:00:37]}  d5 {[%clk 0:00:42]} 38. Bb7 {[%clk 0:00:33]}  Qh4+ {[%clk 0:00:40]} 39. Kg1 {[%clk 0:00:34]}  Qf2+ {[%clk 0:00:40]} 40. Kh1 {[%clk 0:00:35]}  Rf4 {[%clk 0:00:37]} 41. Bc8 {[%clk 0:00:29]}  Rh4+ {[%clk 0:00:34]} 42. Bh3 {[%clk 0:00:29]}  Rxh3+ {[%clk 0:00:34]} 43. gxh3 {[%clk 0:00:28]}  Qf3+ {[%clk 0:00:35]} 0-1

[Event "January 2 Early 2024"]
[Site "https://www.chess.com"]
[Date "2024.01.02"]
[Round "11"]
[White "Jahnz, Fabian"]
[Black "Goncalves, Davi Sulzbacher"]
[Result "1-0"]
[Board "90"]
[TimeControl "180+1"]
[WhiteFideId "4653300"]
[BlackFideId "2154510"]
[WhiteElo "2332"]
[BlackElo "2514"]
[WhiteTeam "GER"]
[BlackTeam "BRA"]
[WhiteClock "0:00:49"]
[BlackClock "0:01:00"]

1. e4 {[%clk 0:03:00]}  c5 {[%clk 0:02:59]} 2. Nf3 {[%clk 0:03:00]}  d6 {[%clk 0:02:59]} 3. Bb5+ {[%clk 0:02:59]}  Nd7 {[%clk 0:02:59]} 4. O-O {[%clk 0:02:58]}  a6 {[%clk 0:02:59]} 5. Bxd7+ {[%clk 0:02:57]}  Bxd7 {[%clk 0:02:59]} 6. Qe2 {[%clk 0:02:58]}  Nf6 {[%clk 0:02:58]} 7. Rd1 {[%clk 0:02:57]}  g6 {[%clk 0:02:52]} 8. c3 {[%clk 0:02:57]}  Bg7 {[%clk 0:02:51]} 9. d4 {[%clk 0:02:56]}  cxd4 {[%clk 0:02:51]} 10. cxd4 {[%clk 0:02:57]}  O-O {[%clk 0:02:51]} 11. Nc3 {[%clk 0:02:56]}  Rc8 {[%clk 0:02:49]} 12. h3 {[%clk 0:02:52]}  b5 {[%clk 0:02:44]} 13. a3 {[%clk 0:02:52]}  Qb6 {[%clk 0:02:40]} 14. Bf4 {[%clk 0:02:49]}  Bc6 {[%clk 0:02:32]} 15. Rac1 {[%clk 0:02:40]}  a5 {[%clk 0:02:24]} 16. d5 {[%clk 0:02:19]}  Bd7 {[%clk 0:02:23]} 17. e5 {[%clk 0:02:17]}  dxe5 {[%clk 0:02:04]} 18. Bxe5 {[%clk 0:02:18]}  b4 {[%clk 0:02:03]} 19. axb4 {[%clk 0:01:34]}  axb4 {[%clk 0:02:03]} 20. Ne4 {[%clk 0:01:30]}  Rxc1 {[%clk 0:01:48]} 21. Rxc1 {[%clk 0:01:26]}  Nxd5 {[%clk 0:01:48]} 22. Bxg7 {[%clk 0:01:23]}  Kxg7 {[%clk 0:01:49]} 23. Rd1 {[%clk 0:01:20]}  Bc6 {[%clk 0:01:32]} 24. Nd4 {[%clk 0:01:11]}  Bb7 {[%clk 0:01:25]} 25. Ng3 {[%clk 0:01:03]}  Nf4 {[%clk 0:01:16]} 26. Qe5+ {[%clk 0:01:01]}  Qf6 {[%clk 0:01:17]} 27. Ndf5+ {[%clk 0:00:49]}  gxf5 {[%clk 0:01:05]} 28. Qxf4 {[%clk 0:00:49]}  e6 {[%clk 0:01:00]} 29. Nh5+ {[%clk 0:00:49]} 1-0

[Event "January 2 Early 2024"]
[Site "https://www.chess.com"]
[Date "2024.01.02"]
[Round "11"]
[White "Bold, Andre"]
[Black "Onslow, Alfie"]
[Result "1-0"]
[Board "91"]
[TimeControl "180+1"]
[WhiteFideId "16208471"]
[BlackFideId "436976"]
[WhiteElo "2513"]
[BlackElo "2309"]
[WhiteTeam "GER"]
[BlackTeam "ENG"]
[WhiteClock "0:01:08"]
[BlackClock "0:00:03"]

1. d4 {[%clk 0:03:00]}  Nf6 {[%clk 0:02:59]} 2. Nf3 {[%clk 0:03:00]}  c5 {[%clk 0:02:59]} 3. c3 {[%clk 0:03:00]}  cxd4 {[%clk 0:02:56]} 4. cxd4 {[%clk 0:03:00]}  g6 {[%clk 0:02:53]} 5. Nc3 {[%clk 0:02:59]}  d5 {[%clk 0:02:52]} 6. Bf4 {[%clk 0:02:59]}  Bg7 {[%clk 0:02:51]} 7. e3 {[%clk 0:02:59]}  O-O {[%clk 0:02:51]} 8. h3 {[%clk 0:02:58]}  a6 {[%clk 0:02:51]} 9. Bd3 {[%clk 0:02:58]}  Nc6 {[%clk 0:02:51]} 10. O-O {[%clk 0:02:58]}  Bf5 {[%clk 0:02:45]} 11. a3 {[%clk 0:02:57]}  Bxd3 {[%clk 0:02:35]} 12. Qxd3 {[%clk 0:02:58]}  Na5 {[%clk 0:02:31]} 13. Ne5 {[%clk 0:02:54]}  Rc8 {[%clk 0:02:24]} 14. b4 {[%clk 0:02:48]}  Nc4 {[%clk 0:02:17]} 15. Nxc4 {[%clk 0:02:48]}  dxc4 {[%clk 0:02:00]} 16. Qe2 {[%clk 0:02:42]}  Nd5 {[%clk 0:01:59]} 17. Nxd5 {[%clk 0:02:40]}  Qxd5 {[%clk 0:02:00]} 18. a4 {[%clk 0:02:39]}  Rfd8 {[%clk 0:01:42]} 19. Rfb1 {[%clk 0:02:36]}  b5 {[%clk 0:01:35]} 20. axb5 {[%clk 0:02:35]}  axb5 {[%clk 0:01:36]} 21. Ra5 {[%clk 0:02:35]}  Rd7 {[%clk 0:01:18]} 22. Rba1 {[%clk 0:02:34]}  e5 {[%clk 0:01:13]} 23. Bxe5 {[%clk 0:02:34]}  Bxe5 {[%clk 0:01:13]} 24. dxe5 {[%clk 0:02:34]}  Qxe5 {[%clk 0:01:14]} 25. f4 {[%clk 0:02:21]}  Qc3 {[%clk 0:01:11]} 26. Qe1 {[%clk 0:02:13]}  Rd2 {[%clk 0:00:24]} 27. R5a2 {[%clk 0:01:57]}  Rcd8 {[%clk 0:00:18]} 28. Rxd2 {[%clk 0:01:50]}  Qxd2 {[%clk 0:00:15]} 29. Qxd2 {[%clk 0:01:42]}  Rxd2 {[%clk 0:00:16]} 30. Ra5 {[%clk 0:01:42]}  Rd5 {[%clk 0:00:05]} 31. e4 {[%clk 0:01:37]}  Rd4 {[%clk 0:00:05]} 32. Rxb5 {[%clk 0:01:36]}  Rxe4 {[%clk 0:00:05]} 33. f5 {[%clk 0:01:31]}  Kg7 {[%clk 0:00:05]} 34. fxg6 {[%clk 0:01:30]}  hxg6 {[%clk 0:00:05]} 35. Rc5 {[%clk 0:01:29]}  Kf6 {[%clk 0:00:04]} 36. Kf2 {[%clk 0:01:29]}  Ke6 {[%clk 0:00:04]} 37. Kf3 {[%clk 0:01:29]}  f5 {[%clk 0:00:04]} 38. Rc6+ {[%clk 0:01:28]}  Ke5 {[%clk 0:00:04]} 39. Rxg6 {[%clk 0:01:24]}  Kd4 {[%clk 0:00:04]} 40. Rd6+ {[%clk 0:01:22]}  Kc3 {[%clk 0:00:04]} 41. b5 {[%clk 0:01:22]}  Kb4 {[%clk 0:00:02]} 42. b6 {[%clk 0:01:21]}  Re7 {[%clk 0:00:02]} 43. Rc6 {[%clk 0:01:19]}  c3 {[%clk 0:00:02]} 44. Rc7 {[%clk 0:01:15]}  Re6 {[%clk 0:00:01]} 45. b7 {[%clk 0:01:14]}  Rb6 {[%clk 0:00:02]} 46. Kf4 {[%clk 0:01:12]}  Rb5 {[%clk 0:00:02]} 47. h4 {[%clk 0:01:11]}  Kb3 {[%clk 0:00:02]} 48. h5 {[%clk 0:01:12]}  c2 {[%clk 0:00:03]} 49. h6 {[%clk 0:01:10]}  Kb2 {[%clk 0:00:02]} 50. h7 {[%clk 0:01:09]}  c1=Q+ {[%clk 0:00:03]} 51. Rxc1 {[%clk 0:01:08]}  Kxc1 {[%clk 0:00:03]} 52. h8=Q {[%clk 0:01:08]} 1-0

[Event "January 2 Early 2024"]
[Site "https://www.chess.com"]
[Date "2024.01.02"]
[Round "11"]
[White "Smirnov, Mark"]
[Black "Sanchez Alvares, Kelvin Antonio"]
[Result "1-0"]
[Board "93"]
[TimeControl "180+1"]
[WhiteFideId "13764594"]
[BlackFideId "3906680"]
[WhiteElo "2533"]
[BlackElo "2460"]
[WhiteTeam "KAZ"]
[BlackTeam "VEN"]
[WhiteClock "0:00:08"]
[BlackClock "0:00:38"]

1. e4 {[%clk 0:02:58]}  e5 {[%clk 0:02:54]} 2. Nc3 {[%clk 0:02:57]}  Nc6 {[%clk 0:02:54]} 3. g3 {[%clk 0:02:57]}  Nf6 {[%clk 0:02:53]} 4. Bg2 {[%clk 0:02:57]}  Bc5 {[%clk 0:02:53]} 5. Nge2 {[%clk 0:02:58]}  d6 {[%clk 0:02:54]} 6. O-O {[%clk 0:02:56]}  h6 {[%clk 0:02:53]} 7. Na4 {[%clk 0:02:55]}  Bb6 {[%clk 0:02:52]} 8. Nxb6 {[%clk 0:02:54]}  axb6 {[%clk 0:02:53]} 9. d4 {[%clk 0:02:52]}  exd4 {[%clk 0:02:53]} 10. Nxd4 {[%clk 0:02:52]}  O-O {[%clk 0:02:52]} 11. c4 {[%clk 0:02:49]}  Nxd4 {[%clk 0:02:51]} 12. Qxd4 {[%clk 0:02:45]}  Nd7 {[%clk 0:02:51]} 13. b3 {[%clk 0:02:41]}  Qf6 {[%clk 0:02:51]} 14. Qxf6 {[%clk 0:02:39]}  Nxf6 {[%clk 0:02:52]} 15. Bb2 {[%clk 0:02:39]}  Nd7 {[%clk 0:02:46]} 16. Rfd1 {[%clk 0:02:37]}  Nc5 {[%clk 0:02:46]} 17. e5 {[%clk 0:02:37]}  dxe5 {[%clk 0:02:37]} 18. Bxe5 {[%clk 0:02:37]}  Na6 {[%clk 0:02:33]} 19. a3 {[%clk 0:02:01]}  Re8 {[%clk 0:02:30]} 20. Re1 {[%clk 0:01:36]}  c6 {[%clk 0:02:15]} 21. Bd4 {[%clk 0:01:30]}  Rxe1+ {[%clk 0:01:42]} 22. Rxe1 {[%clk 0:01:31]}  Bf5 {[%clk 0:01:30]} 23. Bxb6 {[%clk 0:01:26]}  Kf8 {[%clk 0:01:22]} 24. b4 {[%clk 0:01:19]}  Be6 {[%clk 0:01:21]} 25. b5 {[%clk 0:01:17]}  Nb8 {[%clk 0:01:21]} 26. Bc5+ {[%clk 0:01:05]}  Ke8 {[%clk 0:01:18]} 27. Bh3 {[%clk 0:00:56]}  Kd7 {[%clk 0:01:09]} 28. Bxe6+ {[%clk 0:00:55]}  fxe6 {[%clk 0:01:09]} 29. Rd1+ {[%clk 0:00:48]}  Kc8 {[%clk 0:01:09]} 30. Rd6 {[%clk 0:00:34]}  Nd7 {[%clk 0:01:05]} 31. Be3 {[%clk 0:00:29]}  Rxa3 {[%clk 0:00:59]} 32. bxc6 {[%clk 0:00:27]}  bxc6 {[%clk 0:00:55]} 33. Rxc6+ {[%clk 0:00:28]}  Kd8 {[%clk 0:00:56]} 34. Rxe6 {[%clk 0:00:25]}  Rc3 {[%clk 0:00:55]} 35. Rg6 {[%clk 0:00:19]}  Rxc4 {[%clk 0:00:46]} 36. Rxg7 {[%clk 0:00:19]}  h5 {[%clk 0:00:46]} 37. Rh7 {[%clk 0:00:16]}  h4 {[%clk 0:00:41]} 38. Bg5+ {[%clk 0:00:15]}  Ke8 {[%clk 0:00:41]} 39. Re7+ {[%clk 0:00:12]}  Kf8 {[%clk 0:00:40]} 40. Rxd7 {[%clk 0:00:12]}  h3 {[%clk 0:00:41]} 41. Rh7 {[%clk 0:00:07]}  Rc5 {[%clk 0:00:38]} 42. Be3 {[%clk 0:00:05]}  Ra5 {[%clk 0:00:34]} 43. Rxh3 {[%clk 0:00:05]}  Kf7 {[%clk 0:00:34]} 44. Kg2 {[%clk 0:00:06]}  Kg6 {[%clk 0:00:34]} 45. Rh4 {[%clk 0:00:06]}  Ra2 {[%clk 0:00:34]} 46. Rg4+ {[%clk 0:00:07]}  Kf5 {[%clk 0:00:35]} 47. Rf4+ {[%clk 0:00:07]}  Ke5 {[%clk 0:00:35]} 48. h4 {[%clk 0:00:08]}  Ra1 {[%clk 0:00:34]} 49. h5 {[%clk 0:00:08]}  Ra6 {[%clk 0:00:33]} 50. h6 {[%clk 0:00:08]}  Rxh6 {[%clk 0:00:33]} 51. Re4+ {[%clk 0:00:08]}  Kxe4 {[%clk 0:00:33]} 52. Bxh6 {[%clk 0:00:09]}  Kd3 {[%clk 0:00:33]} 53. Kf3 {[%clk 0:00:10]}  Kd4 {[%clk 0:00:32]} 54. Bf4 {[%clk 0:00:10]}  Kd5 {[%clk 0:00:32]} 55. g4 {[%clk 0:00:11]}  Ke6 {[%clk 0:00:33]} 56. g5 {[%clk 0:00:12]}  Kf7 {[%clk 0:00:34]} 57. Kg4 {[%clk 0:00:13]}  Kg6 {[%clk 0:00:35]} 58. f3 {[%clk 0:00:14]}  Kg7 {[%clk 0:00:36]} 59. Bg3 {[%clk 0:00:15]}  Kg6 {[%clk 0:00:37]} 60. f4 {[%clk 0:00:16]}  Kf7 {[%clk 0:00:37]} 61. f5 {[%clk 0:00:17]}  Kg7 {[%clk 0:00:37]} 62. Be5+ {[%clk 0:00:18]}  Kh7 {[%clk 0:00:38]} 63. g6+ {[%clk 0:00:19]}  Kh6 {[%clk 0:00:38]} 64. Bf4+ {[%clk 0:00:16]}  Kg7 {[%clk 0:00:37]} 65. Kg5 {[%clk 0:00:15]}  Kh8 {[%clk 0:00:37]} 66. f6 {[%clk 0:00:15]}  Kg8 {[%clk 0:00:37]} 67. f7+ {[%clk 0:00:15]}  Kf8 {[%clk 0:00:37]} 68. Bd6+ {[%clk 0:00:14]}  Kg7 {[%clk 0:00:38]} 69. f8=Q# {[%clk 0:00:08]} 1-0

[Event "January 2 Early 2024"]
[Site "https://www.chess.com"]
[Date "2024.01.02"]
[Round "11"]
[White "Travkina, Anastasia"]
[Black "Przybylski, Wojciech"]
[Result "0-1"]
[Board "97"]
[TimeControl "180+1"]
[WhiteFideId "24129151"]
[BlackFideId "1117599"]
[WhiteElo "2418"]
[BlackElo "2517"]
[WhiteTeam "RUS"]
[BlackTeam "POL"]
[WhiteClock "0:00:17"]
[BlackClock "0:00:19"]

1. e4 {[%clk 0:03:00]}  c5 {[%clk 0:02:55]} 2. Nf3 {[%clk 0:03:00]}  e6 {[%clk 0:02:55]} 3. d4 {[%clk 0:03:01]}  cxd4 {[%clk 0:02:55]} 4. Nxd4 {[%clk 0:03:02]}  Nc6 {[%clk 0:02:55]} 5. Nc3 {[%clk 0:03:02]}  Qc7 {[%clk 0:02:54]} 6. Be3 {[%clk 0:03:02]}  a6 {[%clk 0:02:54]} 7. f4 {[%clk 0:03:01]}  d6 {[%clk 0:02:53]} 8. Qf3 {[%clk 0:03:02]}  Nf6 {[%clk 0:02:52]} 9. g4 {[%clk 0:03:02]}  Be7 {[%clk 0:02:52]} 10. g5 {[%clk 0:03:01]}  Nd7 {[%clk 0:02:52]} 11. h4 {[%clk 0:02:58]}  Nxd4 {[%clk 0:02:30]} 12. Bxd4 {[%clk 0:02:57]}  Bf8 {[%clk 0:02:27]} 13. O-O-O {[%clk 0:02:52]}  Nb8 {[%clk 0:02:22]} 14. f5 {[%clk 0:02:46]}  Nc6 {[%clk 0:02:19]} 15. Bh3 {[%clk 0:02:24]}  Nxd4 {[%clk 0:02:02]} 16. Rxd4 {[%clk 0:02:25]}  Bd7 {[%clk 0:02:02]} 17. fxe6 {[%clk 0:01:52]}  fxe6 {[%clk 0:02:00]} 18. b3 {[%clk 0:01:53]}  b5 {[%clk 0:01:52]} 19. e5 {[%clk 0:01:47]}  Bc6 {[%clk 0:01:41]} 20. Qf1 {[%clk 0:01:16]}  dxe5 {[%clk 0:01:37]} 21. Rd2 {[%clk 0:01:07]}  Bb4 {[%clk 0:01:34]} 22. Rd3 {[%clk 0:00:53]}  Rf8 {[%clk 0:01:24]} 23. Qd1 {[%clk 0:00:51]}  e4 {[%clk 0:01:03]} 24. Re1 {[%clk 0:00:34]}  Qe5 {[%clk 0:00:49]} 25. Nb1 {[%clk 0:00:19]}  g6 {[%clk 0:00:45]} 26. Rde3 {[%clk 0:00:17]}  Rf4 {[%clk 0:00:40]} 27. c3 {[%clk 0:00:17]}  Bc5 {[%clk 0:00:38]} 28. R3e2 {[%clk 0:00:17]}  Rd8 {[%clk 0:00:37]} 29. Bg2 {[%clk 0:00:17]}  Rxd1+ {[%clk 0:00:23]} 30. Rxd1 {[%clk 0:00:18]}  Rf2 {[%clk 0:00:21]} 31. Rxf2 {[%clk 0:00:18]}  Bxf2 {[%clk 0:00:20]} 32. Rd2 {[%clk 0:00:17]}  Be3 {[%clk 0:00:19]} 0-1

[Event "January 2 Early 2024"]
[Site "https://www.chess.com"]
[Date "2024.01.02"]
[Round "11"]
[White "Kraus, Tomas"]
[Black "Estrada Nieto, Julian"]
[Result "0-1"]
[Board "100"]
[TimeControl "180+1"]
[WhiteFideId "331708"]
[BlackFideId "5101018"]
[WhiteElo "2386"]
[BlackElo "2492"]
[WhiteTeam "CZE"]
[BlackTeam "ESP"]
[WhiteClock "0:00:00"]
[BlackClock "0:00:15"]

1. e4 {[%clk 0:03:00]}  e5 {[%clk 0:02:59]} 2. Nf3 {[%clk 0:03:00]}  Nc6 {[%clk 0:02:59]} 3. Bb5 {[%clk 0:02:59]}  a6 {[%clk 0:02:59]} 4. Ba4 {[%clk 0:03:00]}  Nf6 {[%clk 0:03:00]} 5. O-O {[%clk 0:03:00]}  Be7 {[%clk 0:03:00]} 6. Re1 {[%clk 0:03:00]}  b5 {[%clk 0:03:01]} 7. Bb3 {[%clk 0:03:00]}  d6 {[%clk 0:03:01]} 8. c3 {[%clk 0:03:00]}  O-O {[%clk 0:03:02]} 9. d4 {[%clk 0:02:58]}  Bb7 {[%clk 0:03:02]} 10. Nbd2 {[%clk 0:02:53]}  Re8 {[%clk 0:03:02]} 11. Nf1 {[%clk 0:02:52]}  Bf8 {[%clk 0:03:02]} 12. Ng3 {[%clk 0:02:46]}  h6 {[%clk 0:02:43]} 13. Nh4 {[%clk 0:02:26]}  Na5 {[%clk 0:02:37]} 14. Bc2 {[%clk 0:02:14]}  Nxe4 {[%clk 0:02:31]} 15. Nxe4 {[%clk 0:02:12]}  Qxh4 {[%clk 0:02:29]} 16. a4 {[%clk 0:01:49]}  exd4 {[%clk 0:02:19]} 17. Qxd4 {[%clk 0:01:46]}  d5 {[%clk 0:01:56]} 18. g3 {[%clk 0:01:40]}  Qd8 {[%clk 0:01:34]} 19. axb5 {[%clk 0:01:07]}  Nc4 {[%clk 0:01:10]} 20. bxa6 {[%clk 0:00:48]}  Bxa6 {[%clk 0:01:10]} 21. Ba4 {[%clk 0:00:45]}  Rxe4 {[%clk 0:01:05]} 22. Rxe4 {[%clk 0:00:42]}  dxe4 {[%clk 0:01:05]} 23. Qxe4 {[%clk 0:00:23]}  g6 {[%clk 0:00:39]} 24. Bc6 {[%clk 0:00:23]}  Qd1+ {[%clk 0:00:32]} 25. Kg2 {[%clk 0:00:23]}  Nd6 {[%clk 0:00:16]} 26. Qd5 {[%clk 0:00:08]}  Bf1+ {[%clk 0:00:14]} 27. Kg1 {[%clk 0:00:05]}  Qxd5 {[%clk 0:00:15]} 28. Bxd5 {[%clk 0:00:00]}  Rxa1 {[%clk 0:00:15]} 0-1

[Event "January 2 Early 2024"]
[Site "https://www.chess.com"]
[Date "2024.01.02"]
[Round "11"]
[White "Spitzl, Vinzent"]
[Black "knightmareprodigy"]
[Result "0-1"]
[Board "102"]
[TimeControl "180+1"]
[WhiteFideId "12901253"]
[WhiteElo "2482"]
[BlackElo "2323"]
[WhiteTeam "GER"]
[WhiteClock "0:00:04"]
[BlackClock "0:00:09"]

1. e4 {[%clk 0:03:00]}  c5 {[%clk 0:02:59]} 2. Nf3 {[%clk 0:03:00]}  d6 {[%clk 0:02:59]} 3. d4 {[%clk 0:03:00]}  cxd4 {[%clk 0:02:56]} 4. Nxd4 {[%clk 0:03:01]}  Nf6 {[%clk 0:02:56]} 5. Nc3 {[%clk 0:03:02]}  a6 {[%clk 0:02:54]} 6. Bg5 {[%clk 0:03:02]}  Nc6 {[%clk 0:02:53]} 7. Qd2 {[%clk 0:02:53]}  e6 {[%clk 0:02:52]} 8. O-O-O {[%clk 0:02:51]}  Bd7 {[%clk 0:02:52]} 9. f3 {[%clk 0:02:51]}  Nxd4 {[%clk 0:02:50]} 10. Qxd4 {[%clk 0:02:51]}  Be7 {[%clk 0:02:45]} 11. h4 {[%clk 0:02:48]}  b5 {[%clk 0:02:42]} 12. Qd2 {[%clk 0:02:48]}  O-O {[%clk 0:02:39]} 13. Kb1 {[%clk 0:02:42]}  b4 {[%clk 0:02:38]} 14. Ne2 {[%clk 0:02:42]}  d5 {[%clk 0:02:25]} 15. e5 {[%clk 0:02:37]}  Ne8 {[%clk 0:02:24]} 16. Bxe7 {[%clk 0:02:25]}  Qxe7 {[%clk 0:02:24]} 17. Nd4 {[%clk 0:02:25]}  Nc7 {[%clk 0:02:23]} 18. h5 {[%clk 0:02:13]}  Bb5 {[%clk 0:02:16]} 19. h6 {[%clk 0:02:07]}  g6 {[%clk 0:02:15]} 20. Bxb5 {[%clk 0:01:57]}  Nxb5 {[%clk 0:02:14]} 21. Nc6 {[%clk 0:01:57]}  Qc7 {[%clk 0:02:08]} 22. Nxb4 {[%clk 0:01:36]}  Qxe5 {[%clk 0:02:07]} 23. Rhe1 {[%clk 0:01:34]}  Qf6 {[%clk 0:02:04]} 24. Nd3 {[%clk 0:01:33]}  a5 {[%clk 0:02:00]} 25. g4 {[%clk 0:01:32]}  a4 {[%clk 0:01:57]} 26. g5 {[%clk 0:01:33]}  Qf5 {[%clk 0:01:54]} 27. Re5 {[%clk 0:01:28]}  Qxf3 {[%clk 0:01:53]} 28. Rde1 {[%clk 0:01:17]}  a3 {[%clk 0:01:51]} 29. b3 {[%clk 0:01:17]}  Rac8 {[%clk 0:01:48]} 30. R5e3 {[%clk 0:01:16]}  Qg4 {[%clk 0:01:36]} 31. Ne5 {[%clk 0:01:09]}  Qxg5 {[%clk 0:01:33]} 32. Rf1 {[%clk 0:01:04]}  Nc3+ {[%clk 0:01:30]} 33. Ka1 {[%clk 0:01:02]}  Ne4 {[%clk 0:01:29]} 34. Qd4 {[%clk 0:00:58]}  Qxh6 {[%clk 0:01:19]} 35. Nd7 {[%clk 0:00:56]}  Qg7 {[%clk 0:01:13]} 36. Qxg7+ {[%clk 0:00:41]}  Kxg7 {[%clk 0:01:12]} 37. Nxf8 {[%clk 0:00:42]}  Rxf8 {[%clk 0:01:05]} 38. c4 {[%clk 0:00:42]}  f5 {[%clk 0:01:05]} 39. cxd5 {[%clk 0:00:42]}  exd5 {[%clk 0:01:05]} 40. Rd1 {[%clk 0:00:40]}  Rc8 {[%clk 0:00:59]} 41. b4 {[%clk 0:00:37]}  h5 {[%clk 0:00:56]} 42. b5 {[%clk 0:00:32]}  h4 {[%clk 0:00:56]} 43. b6 {[%clk 0:00:30]}  Rb8 {[%clk 0:00:47]} 44. Rb1 {[%clk 0:00:24]}  Nd2 {[%clk 0:00:33]} 45. Rb5 {[%clk 0:00:22]}  Nc4 {[%clk 0:00:33]} 46. Re6 {[%clk 0:00:10]}  h3 {[%clk 0:00:31]} 47. b7 {[%clk 0:00:08]}  h2 {[%clk 0:00:29]} 48. Re1 {[%clk 0:00:08]}  g5 {[%clk 0:00:22]} 49. Rxd5 {[%clk 0:00:08]}  Rxb7 {[%clk 0:00:20]} 50. Rxf5 {[%clk 0:00:08]}  Kg6 {[%clk 0:00:20]} 51. Rf2 {[%clk 0:00:06]}  Rb8 {[%clk 0:00:14]} 52. Rxh2 {[%clk 0:00:05]}  g4 {[%clk 0:00:13]} 53. Rg2 {[%clk 0:00:04]}  Kf5 {[%clk 0:00:11]} 54. Rf1+ {[%clk 0:00:04]}  Kg5 {[%clk 0:00:10]} 55. Rfg1 {[%clk 0:00:03]}  Ne3 {[%clk 0:00:10]} 56. Rg3 {[%clk 0:00:04]}  Nc2# {[%clk 0:00:09]} 0-1